[Event "Live Chess"]
[Site "Chess.com"]
[Date "2023.05.20"]
[Round "-"]
[White "lightningorderyt"]
[Black "HoarseyHorsey"]
[Result "1/2-1/2"]
[WhiteElo "520"]
[BlackElo "1412"]
[TimeControl "300"]
[EndTime "14:10:53 PDT"]
[Termination "Game drawn by repetition"]

1. d4 {[%clk 0:04:59.4]} 1... Nf6 {[%clk 0:04:57.2]} 2. Nf3 {[%clk 0:04:57.2]}
2... d5 {[%clk 0:04:56.3]} 3. Nc3 {[%clk 0:04:56]} 3... Bg4 {[%clk 0:04:54.5]}
4. Bg5 {[%clk 0:04:47.1]} 4... e6 {[%clk 0:04:52.7]} 5. e3 {[%clk 0:04:45.6]}
5... Bb4 {[%clk 0:04:46]} 6. Qd3 {[%clk 0:04:29.8]} 6... Bxf3 {[%clk 0:04:42.7]}
7. gxf3 {[%clk 0:04:24.9]} 7... O-O {[%clk 0:04:39]} 8. a3 {[%clk 0:04:21.9]}
8... Be7 {[%clk 0:04:36.2]} 9. Qb5 {[%clk 0:04:15]} 9... b6 {[%clk 0:04:05.7]}
10. Bg2 {[%clk 0:04:09.3]} 10... c6 {[%clk 0:04:01.6]} 11. Qa4 {[%clk
0:03:59.8]} 11... c5 {[%clk 0:03:53.1]} 12. e4 {[%clk 0:03:54.8]} 12... h6
{[%clk 0:03:48.2]} 13. Bxf6 {[%clk 0:03:50.6]} 13... Bxf6 {[%clk 0:03:47.3]} 14.
dxc5 {[%clk 0:03:49.6]} 14... bxc5 {[%clk 0:03:45.9]} 15. O-O-O {[%clk
0:03:44.2]} 15... Bxc3 {[%clk 0:03:41.7]} 16. bxc3 {[%clk 0:03:40]} 16... Qf6
{[%clk 0:03:29.7]} 17. exd5 {[%clk 0:03:35.4]} 17... exd5 {[%clk 0:03:28.7]} 18.
f4 {[%clk 0:03:32.6]} 18... Qxc3 {[%clk 0:03:18.4]} 19. Bxd5 {[%clk 0:03:23.4]}
19... Qa1+ {[%clk 0:03:01.8]} 20. Kd2 {[%clk 0:03:20.1]} 20... Qf6 {[%clk
0:02:51.3]} 21. Bxa8 {[%clk 0:03:16.1]} 21... Rd8+ {[%clk 0:02:45.1]} 22. Ke2
{[%clk 0:03:09.1]} 22... Re8+ {[%clk 0:02:41.6]} 23. Kf3 {[%clk 0:03:05.7]}
23... Qc3+ {[%clk 0:02:35.9]} 24. Kg2 {[%clk 0:02:57]} 24... Re6 {[%clk
0:02:03.5]} 25. Rd8+ {[%clk 0:02:50.8]} 25... Kh7 {[%clk 0:02:02.1]} 26. f5
{[%clk 0:02:26.9]} 26... Re5 {[%clk 0:01:52.5]} 27. Rxb8 {[%clk 0:02:21]} 27...
Rxf5 {[%clk 0:01:49.2]} 28. Qe4 {[%clk 0:02:13.8]} 28... Qf6 {[%clk 0:01:45.8]}
29. Bc6 {[%clk 0:01:58.1]} 29... g6 {[%clk 0:01:39.7]} 30. Rf1 {[%clk 0:01:41]}
30... Rg5+ {[%clk 0:01:19.3]} 31. Kh1 {[%clk 0:01:37.3]} 31... Rf5 {[%clk
0:01:14.7]} 32. Bd7 {[%clk 0:01:32.4]} 32... Rf3 {[%clk 0:00:59.6]} 33. Qe8
{[%clk 0:01:24.1]} 33... h5 {[%clk 0:00:49.9]} 34. Qg8+ {[%clk 0:01:11.2]} 34...
Kh6 {[%clk 0:00:48.7]} 35. Qh8+ {[%clk 0:00:53.3]} 35... Kg5 {[%clk 0:00:47.7]}
36. Qxf6+ {[%clk 0:00:51.5]} 36... Kxf6 {[%clk 0:00:47.6]} 37. Ra8 {[%clk
0:00:47.2]} 37... c4 {[%clk 0:00:43.6]} 38. Rxa7 {[%clk 0:00:45.9]} 38... c3
{[%clk 0:00:43.1]} 39. Ra6+ {[%clk 0:00:42.4]} 39... Ke7 {[%clk 0:00:40.3]} 40.
Bb5 {[%clk 0:00:39.7]} 40... Rf5 {[%clk 0:00:35.7]} 41. Ra7+ {[%clk 0:00:35]}
41... Kd6 {[%clk 0:00:32.7]} 42. Bd3 {[%clk 0:00:32]} 42... Rf4 {[%clk
0:00:25.1]} 43. Ra6+ {[%clk 0:00:25.2]} 43... Ke5 {[%clk 0:00:23.4]} 44. Rb6
{[%clk 0:00:20.1]} 44... Kd4 {[%clk 0:00:21.9]} 45. a4 {[%clk 0:00:18.3]} 45...
Kc5 {[%clk 0:00:19.1]} 46. a5 {[%clk 0:00:15.6]} 46... Ra4 {[%clk 0:00:16.4]}
47. Rb8 {[%clk 0:00:11.5]} 47... Rxa5 {[%clk 0:00:15.4]} 48. Rc8+ {[%clk
0:00:10.6]} 48... Kd4 {[%clk 0:00:14.5]} 49. Rd8+ {[%clk 0:00:09.4]} 49... Kc5
{[%clk 0:00:14]} 50. Rc8+ {[%clk 0:00:08]} 50... Kb4 {[%clk 0:00:13.3]} 51. Rb8+
{[%clk 0:00:07.2]} 51... Kc5 {[%clk 0:00:12.7]} 52. Rc8+ {[%clk 0:00:06.4]}
1/2-1/2

[Event "Live Chess"]
[Site "Chess.com"]
[Date "2023.05.20"]
[Round "-"]
[White "CameronM1234"]
[Black "AbilifyXL"]
[Result "0-1"]
[WhiteElo "1130"]
[BlackElo "1954"]
[TimeControl "300"]
[EndTime "14:11:14 PDT"]
[Termination "AbilifyXL won by resignation"]

1. e4 {[%clk 0:04:59.3]} 1... d5 {[%clk 0:04:59.9]} 2. exd5 {[%clk 0:04:57.9]}
2... Qxd5 {[%clk 0:04:59.8]} 3. Nc3 {[%clk 0:04:57.2]} 3... Qa5 {[%clk
0:04:59.1]} 4. d4 {[%clk 0:04:56.1]} 4... c6 {[%clk 0:04:58.8]} 5. Nf3 {[%clk
0:04:55.6]} 5... Nf6 {[%clk 0:04:58.4]} 6. Bd2 {[%clk 0:04:53.9]} 6... Bg4
{[%clk 0:04:57.3]} 7. Ne4 {[%clk 0:04:39.9]} 7... Qc7 {[%clk 0:04:51.2]} 8.
Nxf6+ {[%clk 0:04:35.8]} 8... exf6 {[%clk 0:04:51.1]} 9. Be2 {[%clk 0:04:26.4]}
9... Bd6 {[%clk 0:04:49.4]} 10. g3 {[%clk 0:04:22.1]} 10... Bh3 {[%clk
0:04:47.1]} 11. Ng1 {[%clk 0:04:18.8]} 11... Bg2 {[%clk 0:04:45.5]} 12. Bf3
{[%clk 0:04:16.4]} 12... Bxh1 {[%clk 0:04:42.4]} 13. Bxh1 {[%clk 0:04:15.1]}
13... O-O {[%clk 0:04:41.7]} 14. Qg4 {[%clk 0:04:08.4]} 14... Re8+ {[%clk
0:04:40.3]} 15. Ne2 {[%clk 0:04:06.7]} 15... Nd7 {[%clk 0:04:38.1]} 16. Bh6
{[%clk 0:04:05.6]} 16... Bf8 {[%clk 0:04:37.1]} 17. Bf4 {[%clk 0:04:03.2]} 17...
Qb6 {[%clk 0:04:34.4]} 18. O-O-O {[%clk 0:03:45.3]} 18... Rad8 {[%clk
0:04:27.7]} 19. h4 {[%clk 0:03:26.2]} 19... Qa6 {[%clk 0:04:25.1]} 20. Kb1
{[%clk 0:03:20.6]} 20... Qxe2 {[%clk 0:04:23.6]} 21. Qxe2 {[%clk 0:03:18.4]}
21... Rxe2 {[%clk 0:04:22.5]} 22. h5 {[%clk 0:03:17.4]} 22... h6 {[%clk
0:04:21]} 23. Bf3 {[%clk 0:03:15.1]} 23... Rxf2 {[%clk 0:04:19.2]} 24. Bg4
{[%clk 0:03:10.8]} 24... Nb6 {[%clk 0:04:16.9]} 0-1

[Event "Live Chess"]
[Site "Chess.com"]
[Date "2023.05.20"]
[Round "-"]
[White "Singapourfeuj"]
[Black "hturner40"]
[Result "1-0"]
[WhiteElo "2252"]
[BlackElo "1806"]
[TimeControl "300"]
[EndTime "14:11:25 PDT"]
[Termination "Singapourfeuj won on time"]

1. d4 {[%clk 0:04:56.4]} 1... Nf6 {[%clk 0:04:57.2]} 2. c4 {[%clk 0:04:54.7]}
2... Nc6 {[%clk 0:04:55.3]} 3. Nf3 {[%clk 0:04:53.6]} 3... d6 {[%clk 0:04:52.4]}
4. g3 {[%clk 0:04:49.2]} 4... Bg4 {[%clk 0:04:50.1]} 5. Bg2 {[%clk 0:04:48.2]}
5... e5 {[%clk 0:04:46.3]} 6. d5 {[%clk 0:04:46.4]} 6... Nb8 {[%clk 0:04:33.8]}
7. h3 {[%clk 0:04:45]} 7... Bh5 {[%clk 0:04:21.2]} 8. Nc3 {[%clk 0:04:41.2]}
8... Be7 {[%clk 0:04:14.3]} 9. O-O {[%clk 0:04:36.2]} 9... O-O {[%clk
0:04:12.2]} 10. b4 {[%clk 0:04:29.2]} 10... a5 {[%clk 0:04:09.6]} 11. b5 {[%clk
0:04:27.3]} 11... b6 {[%clk 0:04:05.6]} 12. e4 {[%clk 0:04:20.1]} 12... Nbd7
{[%clk 0:04:03.7]} 13. Be3 {[%clk 0:04:18.2]} 13... Ne8 {[%clk 0:03:42.3]} 14.
g4 {[%clk 0:04:11.9]} 14... Bg6 {[%clk 0:03:38.1]} 15. Nd2 {[%clk 0:04:10.5]}
15... Bg5 {[%clk 0:03:31.4]} 16. Qe2 {[%clk 0:04:05.5]} 16... Nc5 {[%clk
0:03:03.6]} 17. Nb3 {[%clk 0:04:01.4]} 17... Qf6 {[%clk 0:02:48.3]} 18. Nxc5
{[%clk 0:03:58.6]} 18... bxc5 {[%clk 0:02:45.5]} 19. Bxg5 {[%clk 0:03:56]} 19...
Qxg5 {[%clk 0:02:43.6]} 20. Qe3 {[%clk 0:03:55]} 20... Qxe3 {[%clk 0:02:31]} 21.
fxe3 {[%clk 0:03:53.9]} 21... Nf6 {[%clk 0:02:29.3]} 22. Bf3 {[%clk 0:03:50.1]}
22... h6 {[%clk 0:02:25.3]} 23. Kg2 {[%clk 0:03:44.4]} 23... Nh7 {[%clk
0:02:23]} 24. h4 {[%clk 0:03:43.2]} 24... f6 {[%clk 0:02:18.5]} 25. Kg3 {[%clk
0:03:40.8]} 25... Rfb8 {[%clk 0:01:50.9]} 26. a3 {[%clk 0:03:34.8]} 26... Nf8
{[%clk 0:01:47.9]} 27. Rab1 {[%clk 0:03:31.4]} 27... Nd7 {[%clk 0:01:46.2]} 28.
h5 {[%clk 0:03:29.4]} 28... Bf7 {[%clk 0:01:37.8]} 29. Be2 {[%clk 0:03:28.2]}
29... Nb6 {[%clk 0:01:35.9]} 30. Rf2 {[%clk 0:03:24.6]} 30... Be8 {[%clk
0:01:19]} 31. Bd3 {[%clk 0:03:17.4]} 31... Bd7 {[%clk 0:01:17.5]} 32. Kh4 {[%clk
0:03:15]} 32... Rf8 {[%clk 0:01:13.1]} 33. Ne2 {[%clk 0:03:13.4]} 33... Na4
{[%clk 0:00:58.6]} 34. Ng3 {[%clk 0:03:07.1]} 34... Nb6 {[%clk 0:00:49.4]} 35.
Rg1 {[%clk 0:03:02.9]} 35... Kh7 {[%clk 0:00:42.2]} 36. Rfg2 {[%clk 0:02:57.6]}
36... Rg8 {[%clk 0:00:39.2]} 37. Nf5 {[%clk 0:02:53]} 37... Rae8 {[%clk
0:00:22.8]} 38. Ng3 {[%clk 0:02:48.3]} 38... g5+ {[%clk 0:00:16.7]} 39. hxg6+
{[%clk 0:02:46]} 39... Rxg6 {[%clk 0:00:15.4]} 40. Nf5 {[%clk 0:02:44.7]} 40...
Bxf5 {[%clk 0:00:11]} 41. gxf5 {[%clk 0:02:43.5]} 41... Rg5 {[%clk 0:00:09.6]}
42. Rxg5 {[%clk 0:02:42]} 42... hxg5+ {[%clk 0:00:08.3]} 43. Kg4 {[%clk
0:02:41]} 43... Kg7 {[%clk 0:00:07.3]} 44. Rh1 {[%clk 0:02:40]} 44... Rh8 {[%clk
0:00:05.9]} 45. Rxh8 {[%clk 0:02:37.5]} 45... Kxh8 {[%clk 0:00:04.8]} 46. Kh5
{[%clk 0:02:36.9]} 46... Kg7 {[%clk 0:00:03.7]} 47. Kg4 {[%clk 0:02:36.1]} 47...
Na4 {[%clk 0:00:02.2]} 48. Kh5 {[%clk 0:02:31.8]} 48... Nc3 {[%clk 0:00:01]} 49.
Kg4 {[%clk 0:02:30.5]} 49... Nd1 {[%clk 0:00:00.2]} 50. Kf3 {[%clk 0:02:29.2]}
1-0

[Event "Live Chess"]
[Site "Chess.com"]
[Date "2023.05.20"]
[Round "-"]
[White "smoggyrabbit"]
[Black "LiamClery2020"]
[Result "1-0"]
[WhiteElo "1701"]
[BlackElo "2070"]
[TimeControl "300"]
[EndTime "14:11:37 PDT"]
[Termination "smoggyrabbit won by resignation"]

1. d4 {[%clk 0:04:59.1]} 1... Nf6 {[%clk 0:04:59.9]} 2. Nf3 {[%clk 0:04:57.9]}
2... e6 {[%clk 0:04:57.3]} 3. e3 {[%clk 0:04:57.3]} 3... d5 {[%clk 0:04:56.7]}
4. Bd3 {[%clk 0:04:56.4]} 4... Be7 {[%clk 0:04:56.3]} 5. O-O {[%clk 0:04:55.5]}
5... O-O {[%clk 0:04:56.2]} 6. b3 {[%clk 0:04:54.9]} 6... c5 {[%clk 0:04:56.1]}
7. Bb2 {[%clk 0:04:54.2]} 7... Nc6 {[%clk 0:04:56]} 8. Nbd2 {[%clk 0:04:52.9]}
8... cxd4 {[%clk 0:04:54.8]} 9. exd4 {[%clk 0:04:52]} 9... Bd6 {[%clk
0:04:54.7]} 10. a3 {[%clk 0:04:47.1]} 10... Re8 {[%clk 0:04:53.9]} 11. Ne5
{[%clk 0:04:46.1]} 11... Qc7 {[%clk 0:04:52.7]} 12. f4 {[%clk 0:04:44.7]} 12...
Qb6 {[%clk 0:04:50.3]} 13. Ndf3 {[%clk 0:04:37.7]} 13... Nd7 {[%clk 0:04:42.1]}
14. Kh1 {[%clk 0:04:35.2]} 14... Bxe5 {[%clk 0:04:39]} 15. fxe5 {[%clk
0:04:32.4]} 15... f6 {[%clk 0:04:35.3]} 16. Bxh7+ {[%clk 0:04:18.1]} 16... Kxh7
{[%clk 0:04:34.1]} 17. Ng5+ {[%clk 0:04:17.3]} 17... Kg6 {[%clk 0:04:22.1]} 18.
Qg4 {[%clk 0:03:01.8]} 18... fxg5 {[%clk 0:04:18.3]} 19. h4 {[%clk 0:03:00.7]}
19... Qd8 {[%clk 0:04:13.7]} 20. Bc1 {[%clk 0:02:57.4]} 20... Rh8 {[%clk
0:04:08.3]} 21. Bxg5 {[%clk 0:02:55.1]} 21... Ncxe5 {[%clk 0:04:03.1]} 22. dxe5
{[%clk 0:02:50]} 22... Nxe5 {[%clk 0:04:01.8]} 23. Qg3 {[%clk 0:02:36.3]} 23...
Qxg5 {[%clk 0:04:00]} 24. Qxg5+ {[%clk 0:02:34.3]} 1-0

[Event "Live Chess"]
[Site "Chess.com"]
[Date "2023.05.20"]
[Round "-"]
[White "chessfiction"]
[Black "Wild_Tiger"]
[Result "1-0"]
[WhiteElo "2376"]
[BlackElo "1072"]
[TimeControl "300"]
[EndTime "14:11:40 PDT"]
[Termination "chessfiction won by checkmate"]

1. e4 {[%clk 0:04:59.6]} 1... e5 {[%clk 0:04:57.8]} 2. d4 {[%clk 0:04:59.5]}
2... exd4 {[%clk 0:04:56]} 3. c3 {[%clk 0:04:59.4]} 3... dxc3 {[%clk 0:04:53.9]}
4. Bc4 {[%clk 0:04:59]} 4... cxb2 {[%clk 0:04:50.5]} 5. Bxb2 {[%clk 0:04:58.9]}
5... Nc6 {[%clk 0:04:48.1]} 6. Nf3 {[%clk 0:04:58.1]} 6... Bb4+ {[%clk
0:04:42.7]} 7. Nc3 {[%clk 0:04:56.6]} 7... Qf6 {[%clk 0:04:12.2]} 8. Qb3 {[%clk
0:04:54.1]} 8... d6 {[%clk 0:03:30.3]} 9. O-O-O {[%clk 0:04:51.7]} 9... Be6
{[%clk 0:03:18.6]} 10. Nd5 {[%clk 0:04:49.3]} 10... Qd8 {[%clk 0:02:58]} 11.
Nxb4 {[%clk 0:04:46.8]} 11... Nxb4 {[%clk 0:02:51.1]} 12. Qxb4 {[%clk
0:04:43.5]} 12... Bxc4 {[%clk 0:02:45]} 13. Qxc4 {[%clk 0:04:43.4]} 13... Nf6
{[%clk 0:02:37.6]} 14. e5 {[%clk 0:04:41.6]} 14... Nd7 {[%clk 0:02:34.1]} 15. e6
{[%clk 0:04:34.7]} 15... Nb6 {[%clk 0:02:19.3]} 16. exf7+ {[%clk 0:04:31.5]}
16... Kf8 {[%clk 0:02:17.5]} 17. Qg4 {[%clk 0:04:20.6]} 17... Kxf7 {[%clk
0:02:11.3]} 18. Qxg7+ {[%clk 0:04:17.9]} 18... Ke6 {[%clk 0:02:07.6]} 19. Rhe1+
{[%clk 0:04:17.8]} 19... Kf5 {[%clk 0:02:03.5]} 20. Qf7+ {[%clk 0:04:14.2]}
20... Kg4 {[%clk 0:01:56.9]} 21. Re4# {[%clk 0:04:12.7]} 1-0

[Event "Live Chess"]
[Site "Chess.com"]
[Date "2023.05.20"]
[Round "-"]
[White "elvenstar"]
[Black "Delacorta"]
[Result "1-0"]
[WhiteElo "1584"]
[BlackElo "1411"]
[TimeControl "300"]
[EndTime "14:11:55 PDT"]
[Termination "elvenstar won by resignation"]

1. e4 {[%clk 0:04:58.2]} 1... e6 {[%clk 0:04:58.5]} 2. f4 {[%clk 0:04:56.6]}
2... d5 {[%clk 0:04:54.7]} 3. exd5 {[%clk 0:04:54.7]} 3... Qxd5 {[%clk
0:04:50.2]} 4. Nf3 {[%clk 0:04:52.8]} 4... Nf6 {[%clk 0:04:44]} 5. d4 {[%clk
0:04:50]} 5... Be7 {[%clk 0:04:37.9]} 6. Be2 {[%clk 0:04:45.9]} 6... b6 {[%clk
0:04:24.3]} 7. O-O {[%clk 0:04:39.4]} 7... Bb7 {[%clk 0:04:13.9]} 8. c4 {[%clk
0:04:36.4]} 8... Qd8 {[%clk 0:04:10.1]} 9. Nc3 {[%clk 0:04:32.9]} 9... O-O
{[%clk 0:03:49.4]} 10. Ne5 {[%clk 0:04:26.8]} 10... Nbd7 {[%clk 0:03:35.8]} 11.
Be3 {[%clk 0:04:22.3]} 11... a6 {[%clk 0:03:10.1]} 12. Bf3 {[%clk 0:04:19.9]}
12... Bxf3 {[%clk 0:03:08.4]} 13. Rxf3 {[%clk 0:04:11.9]} 13... Nxe5 {[%clk
0:03:04.7]} 14. fxe5 {[%clk 0:04:09.7]} 14... Nh5 {[%clk 0:02:27.2]} 15. Rh3
{[%clk 0:03:56.5]} 15... g6 {[%clk 0:02:25.6]} 16. Qg4 {[%clk 0:03:40.4]} 16...
Kh8 {[%clk 0:02:13.8]} 17. Bh6 {[%clk 0:03:19.6]} 17... Rg8 {[%clk 0:01:44.9]}
18. Rf1 {[%clk 0:03:14.6]} 18... Qe8 {[%clk 0:01:41.9]} 19. Rhf3 {[%clk
0:02:53.1]} 19... f5 {[%clk 0:01:36]} 20. exf6 {[%clk 0:02:41]} 20... Nxf6
{[%clk 0:01:34.9]} 21. Rxf6 {[%clk 0:02:31.8]} 21... Bxf6 {[%clk 0:01:34.3]} 22.
Rxf6 {[%clk 0:02:30.5]} 22... Qe7 {[%clk 0:01:25.7]} 23. Rxe6 {[%clk 0:02:20.7]}
23... Qd7 {[%clk 0:01:03.5]} 24. Qe4 {[%clk 0:02:08.8]} 24... Rad8 {[%clk
0:00:58]} 25. Qe5+ {[%clk 0:02:04.4]} 1-0

[Event "Live Chess"]
[Site "Chess.com"]
[Date "2023.05.20"]
[Round "-"]
[White "FailsGambits"]
[Black "Stanbad1"]
[Result "0-1"]
[WhiteElo "1321"]
[BlackElo "2409"]
[TimeControl "300"]
[EndTime "14:11:56 PDT"]
[Termination "Stanbad1 won by resignation"]

1. e4 {[%clk 0:04:59.8]} 1... e6 {[%clk 0:04:57.1]} 2. Nf3 {[%clk 0:04:59.2]}
2... d5 {[%clk 0:04:56.3]} 3. exd5 {[%clk 0:04:59.1]} 3... exd5 {[%clk
0:04:55.1]} 4. d4 {[%clk 0:04:59]} 4... Nc6 {[%clk 0:04:53.6]} 5. Nc3 {[%clk
0:04:57.8]} 5... Bg4 {[%clk 0:04:51.6]} 6. Be2 {[%clk 0:04:55.4]} 6... Bb4
{[%clk 0:04:50]} 7. h3 {[%clk 0:04:47.4]} 7... Bh5 {[%clk 0:04:45.1]} 8. O-O
{[%clk 0:04:28.5]} 8... Nge7 {[%clk 0:04:42.2]} 9. Be3 {[%clk 0:04:25.9]} 9...
Bg6 {[%clk 0:04:30.8]} 10. Bd3 {[%clk 0:04:18.9]} 10... O-O {[%clk 0:04:28.1]}
11. Re1 {[%clk 0:04:00.6]} 11... Bxd3 {[%clk 0:04:22]} 12. Qxd3 {[%clk
0:03:59.4]} 12... Ng6 {[%clk 0:04:21]} 13. a3 {[%clk 0:03:50.7]} 13... Bxc3
{[%clk 0:04:19]} 14. Qxc3 {[%clk 0:03:50.6]} 14... Nce7 {[%clk 0:04:15.3]} 15.
Rad1 {[%clk 0:03:33.5]} 15... Nf5 {[%clk 0:04:02.3]} 16. Bc1 {[%clk 0:03:14.8]}
16... Nd6 {[%clk 0:03:58.2]} 17. Ne5 {[%clk 0:03:08.6]} 17... c6 {[%clk
0:03:47.5]} 18. Rd3 {[%clk 0:02:45.8]} 18... Re8 {[%clk 0:03:44]} 19. Rde3
{[%clk 0:02:43.4]} 19... Nxe5 {[%clk 0:03:40.2]} 20. Rxe5 {[%clk 0:02:37.3]}
20... Rxe5 {[%clk 0:03:38]} 21. Rxe5 {[%clk 0:02:37.2]} 21... f6 {[%clk
0:03:34.5]} 22. Re2 {[%clk 0:02:25]} 22... Qd7 {[%clk 0:03:28.1]} 23. Bf4 {[%clk
0:02:21.5]} 23... Nb5 {[%clk 0:03:24.5]} 24. Qb4 {[%clk 0:02:12.8]} 24... b6
{[%clk 0:03:21.5]} 25. Re7 {[%clk 0:02:00.7]} 25... Qf5 {[%clk 0:03:18.4]} 26.
Bh2 {[%clk 0:01:24.2]} 26... Qxc2 {[%clk 0:03:14.5]} 27. a4 {[%clk 0:00:56.6]}
27... Nxd4 {[%clk 0:03:03]} 28. Qxd4 {[%clk 0:00:54.8]} 28... Qc1+ {[%clk
0:03:00.1]} 0-1

[Event "Live Chess"]
[Site "Chess.com"]
[Date "2023.05.20"]
[Round "-"]
[White "JoshMcK"]
[Black "PaulHumphreys"]
[Result "1-0"]
[WhiteElo "1568"]
[BlackElo "1356"]
[TimeControl "300"]
[EndTime "14:12:01 PDT"]
[Termination "JoshMcK won by checkmate"]

1. e4 {[%clk 0:04:59.4]} 1... c5 {[%clk 0:04:57.2]} 2. c3 {[%clk 0:04:57.6]}
2... g6 {[%clk 0:04:55]} 3. d4 {[%clk 0:04:56.3]} 3... cxd4 {[%clk 0:04:53.7]}
4. cxd4 {[%clk 0:04:56.2]} 4... Bg7 {[%clk 0:04:53]} 5. Nf3 {[%clk 0:04:54.4]}
5... Nf6 {[%clk 0:04:51.2]} 6. e5 {[%clk 0:04:53]} 6... Ne4 {[%clk 0:04:47.8]}
7. Nc3 {[%clk 0:04:50.8]} 7... d5 {[%clk 0:04:46.6]} 8. Bb5+ {[%clk 0:04:35.1]}
8... Bd7 {[%clk 0:04:42.5]} 9. Bxd7+ {[%clk 0:04:33.4]} 9... Qxd7 {[%clk
0:04:40.2]} 10. O-O {[%clk 0:04:32.7]} 10... Nc6 {[%clk 0:04:35.5]} 11. Be3
{[%clk 0:04:28]} 11... Kf8 {[%clk 0:04:33.2]} 12. Ng5 {[%clk 0:04:19.2]} 12...
Nxg5 {[%clk 0:04:26.1]} 13. Bxg5 {[%clk 0:04:19.1]} 13... h6 {[%clk 0:04:23.8]}
14. Be3 {[%clk 0:04:18]} 14... g5 {[%clk 0:04:15.6]} 15. Qb3 {[%clk 0:04:12.9]}
15... e6 {[%clk 0:04:10.5]} 16. Nb5 {[%clk 0:04:06.4]} 16... g4 {[%clk
0:04:02.8]} 17. g3 {[%clk 0:03:55.4]} 17... h5 {[%clk 0:04:00.5]} 18. Nd6 {[%clk
0:03:52.9]} 18... Rb8 {[%clk 0:03:55.3]} 19. Rac1 {[%clk 0:03:48.8]} 19... Ke7
{[%clk 0:03:49]} 20. Qa3 {[%clk 0:03:43]} 20... Kd8 {[%clk 0:03:39.1]} 21. Bg5+
{[%clk 0:03:37.2]} 21... Kc7 {[%clk 0:03:29.1]} 22. Nb5+ {[%clk 0:03:33.5]}
22... Kc8 {[%clk 0:03:26.6]} 23. Nxa7+ {[%clk 0:03:31.9]} 23... Kc7 {[%clk
0:03:24.7]} 24. Nb5+ {[%clk 0:03:30.1]} 24... Kc8 {[%clk 0:03:23.5]} 25. Nd6+
{[%clk 0:03:21.1]} 25... Kc7 {[%clk 0:03:19.7]} 26. Qa5+ {[%clk 0:03:12.4]}
26... b6 {[%clk 0:03:16.9]} 27. Qa7+ {[%clk 0:03:10.7]} 27... Rb7 {[%clk
0:03:13.4]} 28. Qxb7# {[%clk 0:03:09.6]} 1-0

[Event "Live Chess"]
[Site "Chess.com"]
[Date "2023.05.20"]
[Round "-"]
[White "TheSmoulderingMaster"]
[Black "toog"]
[Result "0-1"]
[WhiteElo "1715"]
[BlackElo "2615"]
[TimeControl "300"]
[EndTime "14:12:09 PDT"]
[Termination "toog won by resignation"]

1. e4 {[%clk 0:04:58.4]} 1... e5 {[%clk 0:04:56.3]} 2. Nf3 {[%clk 0:04:57.2]}
2... Nf6 {[%clk 0:04:54.9]} 3. Nxe5 {[%clk 0:04:55.4]} 3... d6 {[%clk
0:04:52.9]} 4. Nf3 {[%clk 0:04:52.7]} 4... Nxe4 {[%clk 0:04:52.1]} 5. Bc4 {[%clk
0:04:51.7]} 5... d5 {[%clk 0:04:49.9]} 6. Bb3 {[%clk 0:04:50.5]} 6... c6 {[%clk
0:04:48]} 7. O-O {[%clk 0:04:49.4]} 7... Be7 {[%clk 0:04:46.7]} 8. Re1 {[%clk
0:04:48.8]} 8... O-O {[%clk 0:04:45.5]} 9. d3 {[%clk 0:04:48.1]} 9... Nf6 {[%clk
0:04:44]} 10. Nc3 {[%clk 0:04:46.9]} 10... Bg4 {[%clk 0:04:41.7]} 11. h3 {[%clk
0:04:44.9]} 11... Bh5 {[%clk 0:04:40.9]} 12. Qe2 {[%clk 0:04:37.7]} 12... Re8
{[%clk 0:04:38.3]} 13. Qe3 {[%clk 0:04:31.3]} 13... Nbd7 {[%clk 0:04:36.3]} 14.
Qf4 {[%clk 0:04:25.1]} 14... Qb8 {[%clk 0:04:26.5]} 15. Ne5 {[%clk 0:04:17.4]}
15... Bd6 {[%clk 0:04:08.3]} 16. d4 {[%clk 0:04:09.5]} 16... Nxe5 {[%clk
0:04:06.7]} 17. dxe5 {[%clk 0:04:08.6]} 17... Bxe5 {[%clk 0:04:06.6]} 18. Qd2
{[%clk 0:03:59.9]} 18... Bh2+ {[%clk 0:04:02.6]} 19. Kh1 {[%clk 0:03:58.9]}
19... Rxe1+ {[%clk 0:04:01.8]} 20. Qxe1 {[%clk 0:03:58.1]} 20... Qd6 {[%clk
0:03:59.4]} 21. Bg5 {[%clk 0:03:54.6]} 21... Re8 {[%clk 0:03:57.2]} 22. Qd2
{[%clk 0:03:49.7]} 22... Be5 {[%clk 0:03:56.1]} 23. f4 {[%clk 0:03:45.2]} 23...
Bxc3 {[%clk 0:03:54.3]} 24. Qxc3 {[%clk 0:03:44]} 24... Ne4 {[%clk 0:03:52.9]}
25. Qg3 {[%clk 0:03:40.6]} 25... Nxg3+ {[%clk 0:03:51.7]} 0-1

[Event "Live Chess"]
[Site "Chess.com"]
[Date "2023.05.20"]
[Round "-"]
[White "f4nomore"]
[Black "Long1968"]
[Result "1-0"]
[WhiteElo "1380"]
[BlackElo "1047"]
[TimeControl "300"]
[EndTime "14:12:14 PDT"]
[Termination "f4nomore won on time"]

1. d4 {[%clk 0:04:56.9]} 1... e6 {[%clk 0:04:55.9]} 2. Nf3 {[%clk 0:04:52.7]}
2... c5 {[%clk 0:04:51.4]} 3. c3 {[%clk 0:04:48.6]} 3... b6 {[%clk 0:04:46.5]}
4. e3 {[%clk 0:04:47.3]} 4... Bb7 {[%clk 0:04:42.5]} 5. Be2 {[%clk 0:04:45.6]}
5... Nc6 {[%clk 0:04:38.2]} 6. O-O {[%clk 0:04:43.6]} 6... Qc7 {[%clk
0:04:33.5]} 7. Na3 {[%clk 0:04:39.4]} 7... a6 {[%clk 0:04:28.1]} 8. Nc2 {[%clk
0:04:37.9]} 8... d5 {[%clk 0:04:13.4]} 9. c4 {[%clk 0:04:29.5]} 9... cxd4 {[%clk
0:03:42.3]} 10. Ncxd4 {[%clk 0:04:24.4]} 10... dxc4 {[%clk 0:03:27.8]} 11. Bxc4
{[%clk 0:03:57]} 11... Rd8 {[%clk 0:03:16.1]} 12. Bb3 {[%clk 0:03:49.2]} 12...
Bc5 {[%clk 0:03:01.1]} 13. Qc2 {[%clk 0:03:44]} 13... Nf6 {[%clk 0:02:22.1]} 14.
Bd2 {[%clk 0:03:16.1]} 14... e5 {[%clk 0:01:55]} 15. Nxc6 {[%clk 0:03:01.3]}
15... Qxc6 {[%clk 0:01:41.2]} 16. Qc4 {[%clk 0:02:58.2]} 16... O-O {[%clk
0:01:09.9]} 17. Rac1 {[%clk 0:02:44.2]} 17... Rxd2 {[%clk 0:00:56.6]} 18. Qc3
{[%clk 0:02:22.7]} 18... Rfd8 {[%clk 0:00:12.6]} 19. Qxe5 {[%clk 0:02:16.7]}
19... Ng4 {[%clk 0:00:05.2]} 20. Qg3 {[%clk 0:02:10.9]} 1-0